lending/lending_fUSD_20250121
["ID","MTS","AMOUNT","RATE_DAILY","PERIOD"]
[349796747,1737433851428,-507.62,0.00020819,2]
[349796748,1737433851437,-500.0,0.00020819,2]
[349796749,1737433851447,-503.07,0.00020819,2]
[349796750,1737433851457,-174.199579,0.00020819,2]
[349796751,1737433851466,-500.0,0.00020819,2]
[349796752,1737433851476,-509.9,0.00020819,2]
[349796753,1737433851485,-500.0,0.00020819,2]
[349796754,1737433851498,-272.941629,0.00020819,2]
[349796755,1737433851508,-566.18,0.00020819,2]
[349796756,1737433851517,-500.0,0.00020819,2]
[349796757,1737433851527,-500.0,0.00020819,2]
[349796758,1737433851537,-500.0,0.00020819,2]
[349796759,1737433851546,-500.0,0.00020819,2]
[349796760,1737433851560,-1178.4,0.00020819,2]
[349796761,1737433851569,-500.0,0.00020819,2]
[349796762,1737433851580,-173.748948,0.00020819,2]
[349796763,1737433851589,-821.32,0.00020819,2]
[349796764,1737433851599,-1322.96,0.00020819,2]
[349796765,1737433851610,-1661.3,0.00020819,2]
[349796766,1737433851620,-203.618385,0.00020819,2]
[349796767,1737433851630,-1983.15,0.00020819,2]
[349796768,1737433851641,-775.24,0.00020819,2]
[349796769,1737433851652,-1911.41,0.00020819,2]
[349796770,1737433851662,-500.0,0.00020819,2]
[349796771,1737433851673,-174.057901,0.00020819,2]
[349796772,1737433851683,-500.0,0.00020819,2]
[349796773,1737433851695,-2632.11,0.00020819,2]
[349796774,1737433851705,-500.0,0.00020819,2]
[349796775,1737433851715,-204.340406,0.00020819,2]
[349796776,1737433851724,-500.0,0.00020819,2]
[349796777,1737433851734,-500.0,0.00020819,2]
[349796778,1737433851745,-500.0,0.00020819,2]
[349796779,1737433851755,-731.98,0.00020819,2]
[349796780,1737433851764,-842.77,0.00020819,2]
[349796781,1737433851777,-1601.06,0.00020819,2]
[349796782,1737433851787,-500.0,0.00020819,2]
[349796783,1737433851798,-348.83207896,0.00020819,2]
[349796784,1737433851807,-1599.34,0.00020819,2]
[349796785,1737433851816,-1051.46,0.00020819,2]
[349796786,1737433851826,-500.0,0.00020819,2]
[349796787,1737433851836,-500.0,0.00020819,2]
[349796788,1737433851845,-1676.19,0.00020819,2]
[349796789,1737433851854,-1240.4,0.00020819,2]
[349796790,1737433851864,-500.0,0.00020819,2]
[349796791,1737433851873,-500.0,0.0002082,2]
[349796792,1737433851883,-500.0,0.0002082,2]
[349796793,1737433851892,-500.0,0.0002082,2]
[349796794,1737433851902,-500.0,0.0002082,2]
[349796795,1737433851912,-533.49,0.0002082,2]
[349796796,1737433851921,-500.0,0.0002082,2]
[349796797,1737433851931,-158.58399911,0.0002082,2]
[349796798,1737433851941,-990.66,0.0002082,2]
[349796799,1737433851951,-500.0,0.0002082,2]
[349796800,1737433851960,-500.0,0.0002082,2]
[349796801,1737433851970,-500.0,0.0002082,2]
[349796802,1737433851980,-500.0,0.0002082,2]
[349796803,1737433851991,-500.0,0.0002082,2]
[349796804,1737433852002,-500.0,0.0002082,2]
[349796805,1737433852012,-500.0,0.0002082,2]
[349796806,1737433852022,-500.0,0.0002082,2]
[349796807,1737433852031,-500.0,0.0002082,2]
[349796808,1737433852041,-500.0,0.0002082,2]
[349796809,1737433852050,-500.0,0.0002082,2]
[349796810,1737433852060,-500.0,0.0002082,2]
[349796811,1737433852071,-500.0,0.0002082,2]
[349796812,1737433852081,-500.0,0.0002082,2]
[349796813,1737433852091,-500.0,0.0002082,2]
[349796814,1737433852103,-500.0,0.0002082,2]
[349796815,1737433852112,-500.0,0.0002082,2]
[349796816,1737433852123,-500.0,0.0002082,2]
[349796817,1737433852132,-500.0,0.0002082,2]
[349796818,1737433852144,-500.0,0.0002082,2]
[349796819,1737433852155,-548.82,0.0002082,2]
[349796820,1737433852164,-500.0,0.0002082,2]
[349796821,1737433852175,-500.0,0.0002082,2]
[349796822,1737433852186,-831.5,0.0002082,2]
[349796823,1737433852196,-500.0,0.0002082,2]
[349796824,1737433852206,-1445.57,0.0002082,2]
[349796825,1737433852216,-500.0,0.0002082,2]
[349796826,1737433852226,-1620.28,0.0002082,2]
[349796827,1737433852237,-500.0,0.0002082,2]
[349796828,1737433852249,-500.0,0.0002082,2]
[349796829,1737433852260,-554.32,0.0002082,2]
[349796830,1737433852269,-796.58,0.0002082,2]
[349796831,1737433852280,-500.0,0.0002082,2]
[349796832,1737433852289,-1054.81,0.0002082,2]
[349796833,1737433852299,-1002.73,0.0002082,2]
[349796834,1737433852309,-500.0,0.0002082,2]
[349796835,1737433852318,-500.0,0.0002082,2]
[349796836,1737433852328,-500.0,0.0002082,2]
[349796837,1737433852338,-816.46,0.0002082,2]
[349796838,1737433852348,-1000.0,0.0002082,2]
[349796839,1737433852359,-1052.49,0.0002082,2]
[349796840,1737433852368,-500.0,0.0002082,2]
[349796841,1737433852378,-500.0,0.0002082,2]
[349796842,1737433852387,-414.04288371,0.0002082,2]
[349796843,1737433852397,-1092.55,0.0002082,2]
[349796844,1737433852407,-500.0,0.0002082,2]
[349796845,1737433852417,-500.0,0.0002082,2]
[349796846,1737433852426,-500.0,0.0002082,2]
[349796847,1737433852436,-524.17835608,0.0002082,2]
[349796848,1737433852445,-887.89,0.0002082,2]
[349796849,1737433852455,-500.0,0.0002082,2]
[349796850,1737433852465,-576.02,0.0002082,2]
[349796851,1737433852475,-500.0,0.0002082,2]
[349796852,1737433852485,-500.0,0.0002082,2]
[349796853,1737433852499,-500.0,0.0002082,2]
[349796854,1737433852509,-500.0,0.0002082,2]
[349796855,1737433852519,-524.98256882,0.0002082,2]
[349796856,1737433852528,-500.0,0.0002082,2]
[349796857,1737433852538,-500.0,0.0002082,2]
[349796858,1737433852548,-500.0,0.0002082,2]
[349796859,1737433852558,-500.0,0.0002082,2]
[349796860,1737433852568,-500.0,0.0002082,2]
[349796861,1737433852578,-635.19,0.0002082,2]
[349796862,1737433852589,-502.46,0.0002082,2]
[349796863,1737433852599,-940.46,0.0002082,2]
[349796864,1737433852608,-685.84,0.0002082,2]
[349796865,1737433852618,-1735.78,0.0002082,2]
[349796866,1737433852628,-500.0,0.0002082,2]
[349796867,1737433852637,-300.0,0.00020821,2]
[349796868,1737433852647,-566.64,0.00020821,2]
[349796869,1737433852657,-500.0,0.00020821,2]
[349796870,1737433852667,-500.0,0.00020821,2]
[349796871,1737433852677,-500.0,0.00020821,2]
[349796872,1737433852687,-500.0,0.00020821,2]
[349796873,1737433852697,-500.0,0.00020821,2]
[349796874,1737433852707,-500.0,0.00020821,2]
[349796875,1737433852718,-1334.1,0.00020821,2]
[349796876,1737433852728,-576.6,0.00020821,2]
[349796877,1737433852738,-500.0,0.00020821,2]
[349796878,1737433852752,-500.0,0.00020821,2]
[349796879,1737433852762,-500.0,0.00020821,2]
[349796880,1737433852773,-500.0,0.00020821,2]
[349796881,1737433852784,-222.72338611,0.00020821,2]
[349796882,1737433852794,-651.2,0.00020821,2]
[349796883,1737433852804,-581.24,0.00020821,2]
[349796884,1737433852814,-1294.73,0.00020821,2]
[349796885,1737433852825,-500.0,0.00020821,2]
[349796886,1737433852835,-902.8,0.00020821,2]
[349796887,1737433852845,-1475.03,0.00020821,2]
[349796888,1737433852855,-879.63,0.00020821,2]
[349796889,1737433852865,-1069.94,0.00020821,2]
[349796890,1737433852874,-569.35,0.00020821,2]
[349796891,1737433852884,-676.8,0.00020821,2]
[349796892,1737433852894,-1251.4,0.00020821,2]
[349796893,1737433852904,-1689.0,0.00020821,2]
[349796894,1737433852914,-638.28,0.00020821,2]
[349796895,1737433852936,-576.63,0.00020821,2]
[349796896,1737433852947,-1637.61,0.00020821,2]
[349796897,1737433852959,-500.0,0.00020821,2]
[349796898,1737433852971,-500.0,0.00020821,2]
[349796899,1737433852982,-795.98,0.00020821,2]
[349796900,1737433852995,-500.0,0.00020821,2]
[349796901,1737433853005,-1431.77,0.00020821,2]
[349796902,1737433853015,-500.0,0.00020821,2]
[349796903,1737433853025,-414.30244784,0.0002087,2]
[349796904,1737433853037,-4083.68159168,0.000209,2]
[349796905,1737433853046,-17491.14537034,0.000209,2]
[349796906,1737433853056,-161.606,0.000209,2]
[349796907,1737433853067,-210.0,0.0002095,2]
[349796908,1737433853081,-500.0,0.00020973,2]
[349796909,1737433853091,-500.0,0.00020973,2]
[349796910,1737433853101,-6700.899,0.00020995,2]
[349796911,1737433853112,-322096.42860131,0.00021,2]
[349796912,1737433853123,-13034.57032323,0.00021,2]
[349796913,1737433853133,-382.05632857,0.00021,2]
[349796914,1737433853144,-500.0,0.00021,7]
[349796915,1737433853155,-500.0,0.00021,7]
[349796916,1737433853165,-500.0,0.00021,7]
[349796917,1737433853175,-500.0,0.00021,7]
[349796918,1737433853186,-500.0,0.00021,7]
[349796919,1737433853196,-500.0,0.00021,7]
[349796920,1737433853206,-500.0,0.00021,7]
[349796921,1737433853216,-500.0,0.00021,7]
[349796922,1737433853227,-500.0,0.00021,7]
[349796923,1737433853236,-500.0,0.00021,7]
[349796924,1737433853248,-500.0,0.00021,7]
[349796925,1737433853258,-500.0,0.00021,7]
[349796926,1737433853268,-500.0,0.00021,7]
[349796927,1737433853278,-500.0,0.00021,7]
[349796928,1737433853288,-401.27,0.00021,7]
[349796929,1737433853298,-500.0,0.00021,7]
[349796930,1737433853308,-500.0,0.00021,7]
[349796931,1737433853318,-500.0,0.00021,7]
[349796932,1737433853329,-500.0,0.00021,7]
[349796933,1737433853339,-500.0,0.00021,7]
[349796934,1737433853350,-500.0,0.00021,7]
[349796935,1737433853361,-500.0,0.00021,7]
[349796936,1737433853372,-500.0,0.00021,7]
[349796937,1737433853383,-500.0,0.00021,7]
[349796938,1737433853394,-500.0,0.00021,7]
[349796939,1737433853403,-500.0,0.00021,7]
[349796940,1737433853414,-20709.56445576,0.00021,3]
[349796941,1737433853425,-500.0,0.00021,7]
[349796942,1737433853435,-2880.33855767,0.00021,3]
[349796943,1737433853446,-500.0,0.00021,7]
[349796944,1737433853456,-500.0,0.00021,7]
[349796945,1737433853466,-500.0,0.00021,7]
[349796946,1737433853476,-500.0,0.00021,7]
[349796947,1737433853487,-500.0,0.00021,7]
[349796948,1737433853498,-500.0,0.00021,7]
[349796949,1737433853509,-27195.70087213,0.00021,2]
[349796950,1737433853520,-500.0,0.00021,7]
[349796951,1737433853531,-500.0,0.00021,7]
[349796952,1737433853541,-500.0,0.00021,7]
[349796953,1737433853551,-500.0,0.00021,7]
[349796954,1737433853561,-500.0,0.00021,7]
[349796955,1737433853571,-431.04,0.00021,7]
[349796956,1737433853580,-1346.30502995,0.00021,2]
[349796957,1737433853590,-250.0,0.00021,2]
[349796958,1737433853600,-250.0,0.00021,2]
[349796959,1737433853610,-424.2,0.00021,2]
[349796960,1737433853619,-1000.0,0.00021037,2]
[349796961,1737433853629,-206.63013759,0.00021067,2]
[349796962,1737433853639,-659.87,0.00021092,2]
[349796963,1737433853649,-708.04,0.00021092,2]
[349796964,1737433853659,-1068.35,0.00021092,2]
[349796965,1737433853669,-500.0,0.00021092,2]
[349796966,1737433853679,-1199.12,0.00021092,2]
[349796967,1737433853689,-924.69,0.00021092,2]
[349796968,1737433853699,-500.0,0.00021092,2]
[349796969,1737433853710,-2010.2,0.00021092,2]
[349796970,1737433853721,-750.23,0.00021092,2]
[349796971,1737433853731,-500.0,0.00021092,2]
[349796972,1737433853744,-1053.1,0.00021092,2]
[349796973,1737433853754,-745.4,0.00021092,2]
[349796974,1737433853764,-500.0,0.00021093,2]
[349796975,1737433853774,-500.0,0.00021093,2]
[349796976,1737433853784,-500.0,0.00021093,2]
[349796977,1737433853794,-500.0,0.00021093,2]
[349796978,1737433853805,-500.0,0.00021093,2]
[349796979,1737433853816,-500.0,0.00021093,2]
[349796980,1737433853826,-500.0,0.00021093,2]
[349796981,1737433853836,-197.64529,0.00021093,2]
[349796982,1737433853847,-507.62,0.00021093,2]
[349796983,1737433853857,-500.0,0.00021093,2]
[349796984,1737433853867,-503.07,0.00021093,2]
[349796985,1737433853877,-174.199579,0.00021093,2]
[349796986,1737433853887,-500.0,0.00021093,2]
[349796987,1737433853898,-509.9,0.00021093,2]
[349796988,1737433853907,-500.0,0.00021093,2]
[349796989,1737433853917,-272.941629,0.00021093,2]
[349796990,1737433853928,-566.18,0.00021093,2]
[349796991,1737433853938,-500.0,0.00021093,2]
[349796992,1737433853949,-500.0,0.00021093,2]
[349796993,1737433853960,-500.0,0.00021093,2]
[349796994,1737433853970,-500.0,0.00021093,2]
[349796995,1737433853981,-1178.4,0.00021093,2]
[349796996,1737433853995,-173.748948,0.00021093,2]
[349796997,1737433854007,-821.32,0.00021093,2]
[349796998,1737433854018,-1322.96,0.00021093,2]
[349796999,1737433854029,-1661.3,0.00021093,2]
[349797000,1737433854039,-203.618385,0.00021093,2]
[349797001,1737433854050,-1983.15,0.00021093,2]
[349797002,1737433854061,-775.24,0.00021093,2]
[349797003,1737433854074,-1911.41,0.00021093,2]
[349797004,1737433854085,-500.0,0.00021093,2]
[349797005,1737433854095,-174.057901,0.00021093,2]
[349797006,1737433854105,-500.0,0.00021093,2]
[349797007,1737433854115,-2632.11,0.00021093,2]
[349797008,1737433854125,-500.0,0.00021093,2]
[349797009,1737433854135,-204.340406,0.00021093,2]
[349797010,1737433854146,-500.0,0.00021093,2]
[349797011,1737433854155,-500.0,0.00021093,2]
[349797012,1737433854167,-500.0,0.00021093,2]
[349797013,1737433854176,-731.98,0.00021093,2]
[349797014,1737433854187,-842.77,0.00021093,2]
[349797015,1737433854198,-1601.06,0.00021093,2]
[349797016,1737433854208,-414.82658673,0.00021093,2]
[349797017,1737433854218,-1599.34,0.00021093,2]
[349797018,1737433854228,-1051.46,0.00021093,2]
[349797019,1737433854238,-500.0,0.00021093,2]
[349797020,1737433854251,-500.0,0.00021093,2]
[349797021,1737433854262,-1676.19,0.00021093,2]
[349797022,1737433854272,-1240.4,0.00021093,2]
[349797023,1737433854283,-500.0,0.00021093,2]
[349797024,1737433854297,-500.0,0.00021094,2]
[349797025,1737433854311,-500.0,0.00021094,2]
[349797026,1737433854567,-500.0,0.00021094,2]
[349797027,1737433854577,-500.0,0.00021094,2]
[349797028,1737433854587,-533.49,0.00021094,2]
[349797029,1737433854596,-500.0,0.00021094,2]
[349797030,1737433854606,-990.66,0.00021094,2]
[349797031,1737433854615,-598.9438731,0.00021094,2]
[349797032,1737433854625,-500.0,0.00021094,2]
[349797033,1737433854634,-359.93818529,0.00021094,2]
[349797034,1737433854644,-500.0,0.00021094,2]
[349797035,1737433854654,-500.0,0.00021094,2]
[349797036,1737433854664,-500.0,0.00021094,2]
[349797037,1737433854673,-500.0,0.00021094,2]
[349797038,1737433854682,-500.0,0.00021094,2]
[349797039,1737433854691,-500.0,0.00021094,2]
[349797040,1737433854700,-500.0,0.00021094,2]
[349797041,1737433854709,-500.0,0.00021094,2]
[349797042,1737433854718,-175.47388083,0.00021094,2]
[349797043,1737433854727,-500.0,0.00021094,2]
[349797044,1737433854737,-500.0,0.00021094,2]
[349797045,1737433854749,-500.0,0.00021094,2]
[349797046,1737433854758,-500.0,0.00021094,2]
[349797047,1737433854768,-500.0,0.00021094,2]
[349797048,1737433854777,-500.0,0.00021094,2]
[349797049,1737433854786,-500.0,0.00021094,2]
[349797050,1737433854796,-548.82,0.00021094,2]
[349797051,1737433854806,-500.0,0.00021094,2]
[349797052,1737433854815,-500.0,0.00021094,2]
[349797053,1737433854825,-831.5,0.00021094,2]
[349797054,1737433854834,-500.0,0.00021094,2]
[349797055,1737433854843,-1445.57,0.00021094,2]
[349797056,1737433854852,-500.0,0.00021094,2]
[349797057,1737433854861,-1620.28,0.00021094,2]
[349797058,1737433854871,-500.0,0.00021094,2]
[349797059,1737433854880,-500.0,0.00021094,2]
[349797060,1737433854889,-554.32,0.00021094,2]
[349797061,1737433854898,-796.58,0.00021094,2]
[349797062,1737433854908,-500.0,0.00021094,2]
[349797063,1737433854917,-1054.81,0.00021094,2]
[349797064,1737433854928,-1002.73,0.00021094,2]
[349797065,1737433854937,-500.0,0.00021094,2]
[349797066,1737433854946,-500.0,0.00021094,2]
[349797067,1737433854956,-500.0,0.00021094,2]
[349797068,1737433854965,-816.46,0.00021094,2]
[349797069,1737433854975,-1000.0,0.00021094,2]
[349797070,1737433854984,-1052.49,0.00021094,2]
[349797071,1737433854995,-500.0,0.00021094,2]
[349797072,1737433855006,-500.0,0.00021094,2]
[349797073,1737433855016,-1092.55,0.00021094,2]
[349797074,1737433855025,-500.0,0.00021094,2]
[349797075,1737433855036,-500.0,0.00021094,2]
[349797076,1737433855045,-500.0,0.00021094,2]
[349797077,1737433855055,-887.89,0.00021094,2]
[349797078,1737433855064,-514.06866692,0.00021094,2]
[349797079,1737433855077,-576.02,0.00021094,2]
[349797080,1737433855087,-500.0,0.00021094,2]
[349797081,1737433855097,-500.0,0.00021094,2]
[349797082,1737433855106,-500.0,0.00021094,2]
[349797083,1737433855115,-514.38590661,0.00021094,2]
[349797084,1737433855124,-500.0,0.00021094,2]
[349797085,1737433855134,-500.0,0.00021094,2]
[349797086,1737433855143,-500.0,0.00021094,2]
[349797087,1737433855152,-500.0,0.00021094,2]
[349797088,1737433855162,-500.0,0.00021094,2]
[349797089,1737433855172,-635.19,0.00021094,2]
[349797090,1737433855181,-502.46,0.00021094,2]
[349797091,1737433855191,-940.46,0.00021094,2]
[349797092,1737433855200,-685.84,0.00021094,2]
[349797093,1737433855209,-1735.78,0.00021094,2]
[349797094,1737433855219,-549.9,0.00021094,2]
[349797095,1737433855229,-300.0,0.00021095,2]
[349797096,1737433855244,-566.64,0.00021095,2]
[349797097,1737433855253,-500.0,0.00021095,2]
[349797098,1737433855264,-500.0,0.00021095,2]
[349797099,1737433855274,-318.180489,0.00021095,2]
[349797100,1737433855283,-500.0,0.00021095,2]
[349797101,1737433855293,-500.0,0.00021095,2]
[349797102,1737433855303,-500.0,0.00021095,2]
[349797103,1737433855312,-1334.1,0.00021095,2]
[349797104,1737433855321,-576.6,0.00021095,2]
[349797105,1737433855330,-500.0,0.00021095,2]
[349797106,1737433855339,-500.0,0.00021095,2]
[349797107,1737433855348,-500.0,0.00021095,2]
[349797108,1737433855357,-500.0,0.00021095,2]
[349797109,1737433855367,-651.2,0.00021095,2]
[349797110,1737433855376,-581.24,0.00021095,2]
[349797111,1737433855385,-1294.73,0.00021095,2]
[349797112,1737433855394,-500.0,0.00021095,2]
[349797113,1737433855404,-902.8,0.00021095,2]
[349797114,1737433855413,-1475.03,0.00021095,2]
[349797115,1737433855422,-879.63,0.00021095,2]
[349797116,1737433855431,-1069.94,0.00021095,2]
[349797117,1737433855441,-569.35,0.00021095,2]
[349797118,1737433855450,-676.8,0.00021095,2]
[349797119,1737433855459,-1251.4,0.00021095,2]
[349797120,1737433855472,-1689.0,0.00021095,2]
[349797121,1737433855481,-638.28,0.00021095,2]
[349797122,1737433855491,-576.63,0.00021095,2]
[349797123,1737433855501,-1637.61,0.00021095,2]
[349797124,1737433855510,-500.0,0.00021095,2]
[349797125,1737433855520,-500.0,0.00021095,2]
[349797126,1737433855529,-795.98,0.00021095,2]
[349797127,1737433855538,-500.0,0.00021095,2]
[349797128,1737433855547,-1431.77,0.00021095,2]
[349797129,1737433855556,-500.0,0.00021095,2]
[349797130,1737433855564,-1198.03,0.00021096,2]
[349797131,1737433855574,-437.65,0.00021096,2]
[349797132,1737433855584,-1004.3,0.00021106,2]
[349797133,1737433855593,-83811.15108223,0.00021129,2]
[349797134,1737433855602,-176.35,0.00021143,2]
[349797135,1737433855612,-400.09,0.00021178,2]
[349797136,1737433855621,-628.82,0.00021216,30]
[349797137,1737433855630,-9076.38618508,0.00021251,2]
[349797138,1737433855640,-32429.91022181,0.000213,2]
[349797139,1737433855650,-414.30244784,0.00021321,2]
[349797140,1737433855659,-210.0,0.0002133,2]
[349797141,1737433855669,-659.87,0.00021366,2]
[349797142,1737433855678,-708.04,0.00021366,2]
[349797143,1737433855687,-1068.35,0.00021366,2]
[349797144,1737433855696,-500.0,0.00021366,2]
[349797145,1737433855705,-1199.12,0.00021366,2]
[349797146,1737433855715,-924.69,0.00021366,2]
[349797147,1737433855724,-500.0,0.00021366,2]
[349797148,1737433855733,-2010.2,0.00021366,2]
[349797149,1737433855743,-750.23,0.00021366,2]
[349797150,1737433855754,-500.0,0.00021366,2]
[349797151,1737433855764,-1053.1,0.00021366,2]
[349797152,1737433855775,-745.4,0.00021366,2]
[349797153,1737433855785,-500.0,0.00021367,2]
[349797154,1737433855795,-500.0,0.00021367,2]
[349797155,1737433855804,-500.0,0.00021367,2]
[349797156,1737433855814,-500.0,0.00021367,2]
[349797157,1737433855824,-500.0,0.00021367,2]
[349797158,1737433855833,-500.0,0.00021367,2]
[349797159,1737433855843,-500.0,0.00021367,2]
[349797160,1737433855852,-197.64529,0.00021367,2]
[349797161,1737433855861,-507.62,0.00021367,2]
[349797162,1737433855870,-500.0,0.00021367,2]
[349797163,1737433855880,-503.07,0.00021367,2]
[349797164,1737433855889,-174.199579,0.00021367,2]
[349797165,1737433855899,-500.0,0.00021367,2]
[349797166,1737433855908,-509.9,0.00021367,2]
[349797167,1737433855917,-500.0,0.00021367,2]
[349797168,1737433855929,-272.941629,0.00021367,2]
[349797169,1737433855938,-566.18,0.00021367,2]
[349797170,1737433855947,-500.0,0.00021367,2]
[349797171,1737433855956,-500.0,0.00021367,2]
[349797172,1737433855966,-500.0,0.00021367,2]
[349797173,1737433855975,-500.0,0.00021367,2]
[349797174,1737433855985,-1178.4,0.00021367,2]
[349797175,1737433855997,-173.748948,0.00021367,2]
[349797176,1737433856007,-821.32,0.00021367,2]
[349797177,1737433856017,-1322.96,0.00021367,2]
[349797178,1737433856027,-1661.3,0.00021367,2]
[349797179,1737433856036,-203.618385,0.00021367,2]
[349797180,1737433856046,-1983.15,0.00021367,2]
[349797181,1737433856056,-775.24,0.00021367,2]
[349797182,1737433856066,-1911.41,0.00021367,2]
[349797183,1737433856076,-500.0,0.00021367,2]
[349797184,1737433856086,-174.057901,0.00021367,2]
[349797185,1737433856098,-500.0,0.00021367,2]
[349797186,1737433856108,-2632.11,0.00021367,2]
[349797187,1737433856117,-500.0,0.00021367,2]
[349797188,1737433856127,-204.340406,0.00021367,2]
[349797189,1737433856136,-500.0,0.00021367,2]
[349797190,1737433856146,-500.0,0.00021367,2]
[349797191,1737433856155,-500.0,0.00021367,2]
[349797192,1737433856164,-731.98,0.00021367,2]
[349797193,1737433856175,-1601.06,0.00021367,2]
[349797194,1737433856185,-842.77,0.00021367,2]
[349797195,1737433856195,-1599.34,0.00021367,2]
[349797196,1737433856204,-1051.46,0.00021367,2]
[349797197,1737433856214,-500.0,0.00021367,2]
[349797198,1737433856223,-500.0,0.00021367,2]
[349797199,1737433856232,-1676.19,0.00021367,2]
[349797200,1737433856243,-1240.4,0.00021367,2]
[349797201,1737433856253,-500.0,0.00021367,2]
[349797202,1737433856263,-500.0,0.00021368,2]
[349797203,1737433856272,-500.0,0.00021368,2]
[349797204,1737433856282,-582.39239707,0.00021368,2]
[349797205,1737433856292,-500.0,0.00021368,2]
[349797206,1737433856305,-533.49,0.00021368,2]
[349797207,1737433856314,-500.0,0.00021368,2]
[349797208,1737433856323,-990.66,0.00021368,2]
[349797209,1737433856333,-519.40915738,0.00021368,2]
[349797210,1737433856342,-500.0,0.00021368,2]
[349797211,1737433856352,-500.0,0.00021368,2]
[349797212,1737433856361,-500.0,0.00021368,2]
[349797213,1737433856371,-500.0,0.00021368,2]
[349797214,1737433856380,-500.0,0.00021368,2]
[349797215,1737433856390,-500.0,0.00021368,2]
[349797216,1737433856399,-500.0,0.00021368,2]
[349797217,1737433856408,-500.0,0.00021368,2]
[349797218,1737433856418,-500.0,0.00021368,2]
[349797219,1737433856427,-500.0,0.00021368,2]
[349797220,1737433856437,-500.0,0.00021368,2]
[349797221,1737433856446,-500.0,0.00021368,2]
[349797222,1737433856456,-500.0,0.00021368,2]
[349797223,1737433856465,-500.0,0.00021368,2]
[349797224,1737433856475,-500.0,0.00021368,2]
[349797225,1737433856485,-548.82,0.00021368,2]
[349797226,1737433856494,-500.0,0.00021368,2]
[349797227,1737433856504,-831.5,0.00021368,2]
[349797228,1737433856513,-500.0,0.00021368,2]
[349797229,1737433856522,-1445.57,0.00021368,2]
[349797230,1737433856532,-500.0,0.00021368,2]
[349797231,1737433856542,-1620.28,0.00021368,2]
[349797232,1737433856551,-500.0,0.00021368,2]
[349797233,1737433856561,-554.32,0.00021368,2]
[349797234,1737433856570,-796.58,0.00021368,2]
[349797235,1737433856580,-519.11149753,0.00021368,2]
[349797236,1737433856590,-1054.81,0.00021368,2]
[349797237,1737433856599,-1002.73,0.00021368,2]
[349797238,1737433856609,-500.0,0.00021368,2]
[349797239,1737433856619,-500.0,0.00021368,2]
[349797240,1737433856629,-500.0,0.00021368,2]
[349797241,1737433856638,-816.46,0.00021368,2]
[349797242,1737433856648,-1000.0,0.00021368,2]
[349797243,1737433856658,-1052.49,0.00021368,2]
[349797244,1737433856667,-476.76857332,0.00021368,2]
[349797245,1737433856677,-500.0,0.00021368,2]
[349797246,1737433856686,-1092.55,0.00021368,2]